[Event "Titled Tuesday Blitz May 23 Late 2023"]
[White "Yanchenko, Roman"]
[Black "Kramnik, Vladimir"]
[WhiteFideId "4137329"]
[BlackFideId "4101588"]
[WhiteElo "2491"]
[BlackElo "2703"]
[Result "0-1"]
[Round "06"]
[TimeControl "180+2"]
[Date "2023.05.23"]
[WhiteClock "0:00:04"]
[BlackClock "0:00:03"]

1. d4 {[%clk 0:03:00]}  Nf6 {[%clk 0:02:59]} 2. Nf3 {[%clk 0:03:01]}  d5 {[%clk 0:02:59]} 3. Bf4 {[%clk 0:03:00]}  c5 {[%clk 0:02:57]} 4. c3 {[%clk 0:03:01]}  Nc6 {[%clk 0:02:53]} 5. e3 {[%clk 0:03:01]}  Qb6 {[%clk 0:02:43]} 6. Qc1 {[%clk 0:02:53]}  cxd4 {[%clk 0:02:32]} 7. exd4 {[%clk 0:02:53]}  Bf5 {[%clk 0:02:31]} 8. Nbd2 {[%clk 0:02:51]}  e6 {[%clk 0:02:31]} 9. Be2 {[%clk 0:02:46]}  Be7 {[%clk 0:02:30]} 10. O-O {[%clk 0:02:45]}  O-O {[%clk 0:02:28]} 11. Ne5 {[%clk 0:02:44]}  Rfc8 {[%clk 0:02:20]} 12. Nxc6 {[%clk 0:02:35]}  Qxc6 {[%clk 0:02:13]} 13. Qd1 {[%clk 0:02:29]}  b5 {[%clk 0:02:10]} 14. a3 {[%clk 0:02:25]}  a5 {[%clk 0:02:08]} 15. Qb3 {[%clk 0:02:15]}  b4 {[%clk 0:02:01]} 16. axb4 {[%clk 0:02:03]}  axb4 {[%clk 0:02:01]} 17. Rxa8 {[%clk 0:02:03]}  Qxa8 {[%clk 0:01:50]} 18. c4 {[%clk 0:01:50]}  dxc4 {[%clk 0:01:46]} 19. Nxc4 {[%clk 0:01:38]}  Qe4 {[%clk 0:01:29]} 20. Be3 {[%clk 0:01:32]}  Nd5 {[%clk 0:01:26]} 21. Bf3 {[%clk 0:01:09]}  Qd3 {[%clk 0:01:25]} 22. Na5 {[%clk 0:00:25]}  Qb5 {[%clk 0:01:15]} 23. Ra1 {[%clk 0:00:19]}  Bc2 {[%clk 0:01:08]} 24. Qa2 {[%clk 0:00:18]}  b3 {[%clk 0:00:52]} 25. Qa4 {[%clk 0:00:18]}  Qxa4 {[%clk 0:00:51]} 26. Rxa4 {[%clk 0:00:19]}  Ra8 {[%clk 0:00:47]} 27. Ra1 {[%clk 0:00:13]}  Bb4 {[%clk 0:00:44]} 28. Nxb3 {[%clk 0:00:13]}  Rb8 {[%clk 0:00:38]} 29. Bxd5 {[%clk 0:00:11]}  exd5 {[%clk 0:00:37]} 30. Nc5 {[%clk 0:00:11]}  Re8 {[%clk 0:00:28]} 31. Rc1 {[%clk 0:00:10]}  Bf5 {[%clk 0:00:27]} 32. h3 {[%clk 0:00:10]}  h5 {[%clk 0:00:27]} 33. Kh2 {[%clk 0:00:10]}  f6 {[%clk 0:00:26]} 34. Kg3 {[%clk 0:00:10]}  Kf7 {[%clk 0:00:23]} 35. h4 {[%clk 0:00:10]}  Kg6 {[%clk 0:00:23]} 36. Kh2 {[%clk 0:00:10]}  Ra8 {[%clk 0:00:22]} 37. Nb3 {[%clk 0:00:02]}  Ra2 {[%clk 0:00:20]} 38. Bd2 {[%clk 0:00:02]}  Bd6+ {[%clk 0:00:19]} 39. Kg1 {[%clk 0:00:02]}  Rxb2 {[%clk 0:00:20]} 40. Rc3 {[%clk 0:00:02]}  Bg4 {[%clk 0:00:11]} 41. f3 {[%clk 0:00:01]}  Bf5 {[%clk 0:00:10]} 42. Re3 {[%clk 0:00:01]}  Bf4 {[%clk 0:00:07]} 43. Re2 {[%clk 0:00:01]}  Bd3 {[%clk 0:00:05]} 44. Rf2 {[%clk 0:00:01]}  Bg3 {[%clk 0:00:05]} 45. Nc1 {[%clk 0:00:02]}  Bxf2+ {[%clk 0:00:03]} 46. Kxf2 {[%clk 0:00:03]}  Rxd2+ {[%clk 0:00:01]} 47. Ke3 {[%clk 0:00:03]}  Rxg2 {[%clk 0:00:01]} 48. Nxd3 {[%clk 0:00:04]}  Rh2 {[%clk 0:00:01]} 49. Nf4+ {[%clk 0:00:05]}  Kf5 {[%clk 0:00:01]} 50. Nxd5 {[%clk 0:00:05]}  g5 {[%clk 0:00:01]} 51. Ne7+ {[%clk 0:00:06]}  Ke6 {[%clk 0:00:01]} 52. Ng6 {[%clk 0:00:07]}  gxh4 {[%clk 0:00:01]} 53. Nf4+ {[%clk 0:00:07]}  Kd6 {[%clk 0:00:01]} 54. Nxh5 {[%clk 0:00:08]}  h3 {[%clk 0:00:01]} 55. Nf4 {[%clk 0:00:08]}  Rh1 {[%clk 0:00:01]} 56. Kf2 {[%clk 0:00:09]}  Rd1 {[%clk 0:00:01]} 57. Kg3 {[%clk 0:00:09]}  Rxd4 {[%clk 0:00:01]} 58. Nxh3 {[%clk 0:00:10]}  Ke5 {[%clk 0:00:01]} 59. Nf2 {[%clk 0:00:11]}  Kf5 {[%clk 0:00:02]} 60. Ng4 {[%clk 0:00:11]}  Rd3 {[%clk 0:00:02]} 61. Nh6+ {[%clk 0:00:11]}  Kg6 {[%clk 0:00:02]} 62. Ng4 {[%clk 0:00:12]}  Kg5 {[%clk 0:00:02]} 63. Nf2 {[%clk 0:00:12]}  Kf5 {[%clk 0:00:02]} 64. Nh3 {[%clk 0:00:12]}  Rc3 {[%clk 0:00:02]} 65. Nf2 {[%clk 0:00:13]}  Rb3 {[%clk 0:00:03]} 66. Nh3 {[%clk 0:00:14]}  Ra3 {[%clk 0:00:03]} 67. Nf2 {[%clk 0:00:14]}  Ke5 {[%clk 0:00:03]} 68. Ng4+ {[%clk 0:00:15]}  Ke6 {[%clk 0:00:04]} 69. Kf4 {[%clk 0:00:15]}  Ra4+ {[%clk 0:00:03]} 70. Kg3 {[%clk 0:00:16]}  Kf5 {[%clk 0:00:04]} 71. Nf2 {[%clk 0:00:16]}  Kg5 {[%clk 0:00:04]} 72. Nh3+ {[%clk 0:00:17]}  Kg6 {[%clk 0:00:05]} 73. Nf2 {[%clk 0:00:17]}  Kf5 {[%clk 0:00:05]} 74. Nh3 {[%clk 0:00:18]}  Rc4 {[%clk 0:00:05]} 75. Nf2 {[%clk 0:00:18]}  Rb4 {[%clk 0:00:06]} 76. Nh3 {[%clk 0:00:19]}  Rb3 {[%clk 0:00:06]} 77. Nf2 {[%clk 0:00:19]}  Ke5 {[%clk 0:00:06]} 78. Ng4+ {[%clk 0:00:20]}  Ke6 {[%clk 0:00:07]} 79. Kf4 {[%clk 0:00:21]}  Rb4+ {[%clk 0:00:07]} 80. Kg3 {[%clk 0:00:21]}  Kf5 {[%clk 0:00:07]} 81. Nf2 {[%clk 0:00:22]}  Kg5 {[%clk 0:00:06]} 82. Nh3+ {[%clk 0:00:22]}  Kg6 {[%clk 0:00:06]} 83. Nf4+ {[%clk 0:00:22]}  Kf5 {[%clk 0:00:06]} 84. Nd5 {[%clk 0:00:22]}  Rd4 {[%clk 0:00:06]} 85. Ne3+ {[%clk 0:00:22]}  Kg5 {[%clk 0:00:06]} 86. Ng4 {[%clk 0:00:21]}  f5 {[%clk 0:00:05]} 87. Nf2 {[%clk 0:00:21]}  f4+ {[%clk 0:00:05]} 88. Kh3 {[%clk 0:00:20]}  Kf5 {[%clk 0:00:05]} 89. Ng4 {[%clk 0:00:18]}  Rd3 {[%clk 0:00:05]} 90. Kg2 {[%clk 0:00:19]}  Rd2+ {[%clk 0:00:05]} 91. Kf1 {[%clk 0:00:16]}  Kg5 {[%clk 0:00:05]} 92. Nf2 {[%clk 0:00:14]}  Rc2 {[%clk 0:00:05]} 93. Nh3+ {[%clk 0:00:13]}  Kf5 {[%clk 0:00:05]} 94. Kg1 {[%clk 0:00:14]}  Rd2 {[%clk 0:00:05]} 95. Kf1 {[%clk 0:00:14]}  Ke5 {[%clk 0:00:04]} 96. Kg1 {[%clk 0:00:15]}  Rd6 {[%clk 0:00:04]} 97. Kf2 {[%clk 0:00:15]}  Rh6 {[%clk 0:00:04]} 98. Ng5 {[%clk 0:00:15]}  Rh2+ {[%clk 0:00:03]} 99. Kg1 {[%clk 0:00:15]}  Rh5 {[%clk 0:00:03]} 100. Ne4 {[%clk 0:00:14]}  Kd4 {[%clk 0:00:03]} 101. Nf6 {[%clk 0:00:13]}  Rh3 {[%clk 0:00:02]} 102. Kg2 {[%clk 0:00:13]}  Rg3+ {[%clk 0:00:02]} 103. Kf2 {[%clk 0:00:13]}  Rh3 {[%clk 0:00:02]} 104. Kg2 {[%clk 0:00:13]}  Rh8 {[%clk 0:00:02]} 105. Kf2 {[%clk 0:00:13]}  Rh2+ {[%clk 0:00:01]} 106. Kg1 {[%clk 0:00:13]}  Ra2 {[%clk 0:00:02]} 107. Ng4 {[%clk 0:00:14]}  Kd3 {[%clk 0:00:02]} 108. Kf1 {[%clk 0:00:14]}  Kd4 {[%clk 0:00:02]} 109. Ke1 {[%clk 0:00:14]}  Rg2 {[%clk 0:00:02]} 110. Kf1 {[%clk 0:00:14]}  Rb2 {[%clk 0:00:02]} 111. Ke1 {[%clk 0:00:15]}  Ra2 {[%clk 0:00:02]} 112. Kf1 {[%clk 0:00:15]}  Kd3 {[%clk 0:00:03]} 113. Ke1 {[%clk 0:00:16]}  Rb2 {[%clk 0:00:03]} 114. Kf1 {[%clk 0:00:16]}  Kd2 {[%clk 0:00:03]} 115. Kf2 {[%clk 0:00:16]}  Ra2 {[%clk 0:00:04]} 116. Ne5 {[%clk 0:00:16]}  Kd1+ {[%clk 0:00:04]} 117. Kf1 {[%clk 0:00:16]}  Rd2 {[%clk 0:00:04]} 118. Ng6 {[%clk 0:00:16]}  Rd4 {[%clk 0:00:04]} 119. Kf2 {[%clk 0:00:16]}  Kd2 {[%clk 0:00:04]} 120. Nh4 {[%clk 0:00:16]}  Kd3 {[%clk 0:00:04]} 121. Ng6 {[%clk 0:00:16]}  Ra4 {[%clk 0:00:03]} 122. Ne5+ {[%clk 0:00:04]}  Kd4 {[%clk 0:00:03]} 123. Ng6 {[%clk 0:00:04]}  Ra2+ {[%clk 0:00:03]} 124. Kg1 {[%clk 0:00:03]}  Ke3 {[%clk 0:00:04]} 125. Ne5 {[%clk 0:00:04]}  Rc2 {[%clk 0:00:03]} 126. Kf1 {[%clk 0:00:04]}  Rf2+ {[%clk 0:00:03]} 127. Kg1 {[%clk 0:00:04]}  Ra2 {[%clk 0:00:03]} 128. Kf1 {[%clk 0:00:05]}  Rc2 {[%clk 0:00:03]} 129. Kg1 {[%clk 0:00:05]}  Rc5 {[%clk 0:00:03]} 130. Nd7 {[%clk 0:00:05]}  Rg5+ {[%clk 0:00:03]} 131. Kf1 {[%clk 0:00:05]}  Kxf3 {[%clk 0:00:04]} 132. Nf6 {[%clk 0:00:05]}  Ke3 {[%clk 0:00:04]} 133. Ne8 {[%clk 0:00:05]}  f3 {[%clk 0:00:04]} 134. Nc7 {[%clk 0:00:04]}  Rc5 {[%clk 0:00:03]} 135. Ne6 {[%clk 0:00:04]}  Rc1# {[%clk 0:00:03]} 0-1


[Site "https://www.chess.com"]

[Event "Titled Tuesday Blitz May 23 Late 2023"]
[White "Zemlyanskii, Ivan"]
[Black "Xiong, Jeffery"]
[WhiteFideId "24249971"]
[BlackFideId "2047640"]
[WhiteElo "2421"]
[BlackElo "2726"]
[Result "1/2-1/2"]
[Round "06"]
[TimeControl "180+2"]
[Date "2023.05.23"]
[WhiteClock "0:00:01"]
[BlackClock "0:01:19"]

1. d4 {[%clk 0:03:00]}  d5 {[%clk 0:03:00]} 2. Bf4 {[%clk 0:03:00]}  c5 {[%clk 0:02:56]} 3. e3 {[%clk 0:02:58]}  Nf6 {[%clk 0:02:56]} 4. c3 {[%clk 0:02:56]}  e6 {[%clk 0:02:55]} 5. Nf3 {[%clk 0:02:56]}  Nbd7 {[%clk 0:02:56]} 6. Nbd2 {[%clk 0:02:36]}  Be7 {[%clk 0:02:56]} 7. Ne5 {[%clk 0:02:32]}  O-O {[%clk 0:02:54]} 8. Bd3 {[%clk 0:02:32]}  Nxe5 {[%clk 0:02:54]} 9. dxe5 {[%clk 0:02:28]}  Nd7 {[%clk 0:02:54]} 10. h4 {[%clk 0:02:28]}  f5 {[%clk 0:02:53]} 11. g4 {[%clk 0:02:10]}  c4 {[%clk 0:02:42]} 12. Bc2 {[%clk 0:02:06]}  Nc5 {[%clk 0:02:43]} 13. gxf5 {[%clk 0:02:00]}  exf5 {[%clk 0:02:43]} 14. Nf3 {[%clk 0:01:56]}  Be6 {[%clk 0:02:34]} 15. Nd4 {[%clk 0:01:39]}  Qd7 {[%clk 0:02:34]} 16. Qf3 {[%clk 0:01:29]}  b5 {[%clk 0:02:29]} 17. Ke2 {[%clk 0:01:15]}  a5 {[%clk 0:02:28]} 18. Rad1 {[%clk 0:00:55]}  Rad8 {[%clk 0:02:28]} 19. Bg5 {[%clk 0:00:50]}  Bxg5 {[%clk 0:02:21]} 20. hxg5 {[%clk 0:00:51]}  g6 {[%clk 0:02:22]} 21. Qg3 {[%clk 0:00:43]}  b4 {[%clk 0:02:19]} 22. Rh4 {[%clk 0:00:35]}  Rb8 {[%clk 0:02:15]} 23. Rdh1 {[%clk 0:00:34]}  bxc3 {[%clk 0:02:15]} 24. Rxh7 {[%clk 0:00:30]}  Qxh7 {[%clk 0:02:15]} 25. Rxh7 {[%clk 0:00:31]}  Kxh7 {[%clk 0:02:16]} 26. Qh4+ {[%clk 0:00:28]}  Kg8 {[%clk 0:02:16]} 27. Qh6 {[%clk 0:00:18]}  Bf7 {[%clk 0:01:58]} 28. e6 {[%clk 0:00:17]}  Be8 {[%clk 0:01:59]} 29. e7 {[%clk 0:00:17]}  Rf7 {[%clk 0:02:00]} 30. Qxg6+ {[%clk 0:00:11]}  Rg7 {[%clk 0:02:00]} 31. Qxf5 {[%clk 0:00:11]}  Bf7 {[%clk 0:01:51]} 32. bxc3 {[%clk 0:00:10]}  Re8 {[%clk 0:01:48]} 33. Nc6 {[%clk 0:00:06]}  Ne6 {[%clk 0:01:44]} 34. Qf6 {[%clk 0:00:05]}  Bh5+ {[%clk 0:01:39]} 35. Ke1 {[%clk 0:00:04]}  Nxg5 {[%clk 0:01:40]} 36. Ne5 {[%clk 0:00:03]}  Rexe7 {[%clk 0:01:39]} 37. Kf1 {[%clk 0:00:01]}  Nh3 {[%clk 0:01:33]} 38. Ke1 {[%clk 0:00:01]}  Ng5 {[%clk 0:01:33]} 39. Kf1 {[%clk 0:00:01]}  Nh3 {[%clk 0:01:19]} 40. Ke1 {[%clk 0:00:01]}  Ng5 {[%clk 0:01:19]} 1/2-1/2


[Site "https://www.chess.com"]

[Event "Titled Tuesday Blitz May 23 Late 2023"]
[White "Simonian, Hrair"]
[Black "Sanal, Vahap"]
[WhiteFideId "13302337"]
[BlackFideId "6300545"]
[WhiteElo "2447"]
[BlackElo "2606"]
[Result "1-0"]
[Round "06"]
[TimeControl "180+2"]
[Date "2023.05.23"]
[WhiteClock "0:00:50"]
[BlackClock "0:00:00"]

1. e4 {[%clk 0:03:00]}  c5 {[%clk 0:03:00]} 2. Nc3 {[%clk 0:03:01]}  Nc6 {[%clk 0:02:56]} 3. Bb5 {[%clk 0:03:01]}  Nd4 {[%clk 0:02:56]} 4. Bc4 {[%clk 0:03:01]}  e6 {[%clk 0:02:55]} 5. Nge2 {[%clk 0:03:01]}  a6 {[%clk 0:02:45]} 6. Nxd4 {[%clk 0:02:58]}  cxd4 {[%clk 0:02:44]} 7. Ne2 {[%clk 0:02:59]}  Bc5 {[%clk 0:02:42]} 8. O-O {[%clk 0:02:58]}  Ne7 {[%clk 0:02:42]} 9. a3 {[%clk 0:02:56]}  O-O {[%clk 0:02:41]} 10. Ba2 {[%clk 0:02:52]}  b5 {[%clk 0:02:39]} 11. d3 {[%clk 0:02:52]}  Bb7 {[%clk 0:02:32]} 12. Ng3 {[%clk 0:02:51]}  f5 {[%clk 0:02:26]} 13. Bg5 {[%clk 0:02:47]}  f4 {[%clk 0:02:06]} 14. Nf5 {[%clk 0:02:38]}  Qe8 {[%clk 0:01:55]} 15. Qg4 {[%clk 0:02:22]}  Kh8 {[%clk 0:01:23]} 16. Nxe7 {[%clk 0:02:13]}  Bxe7 {[%clk 0:01:23]} 17. Bxf4 {[%clk 0:02:10]}  Rc8 {[%clk 0:00:54]} 18. Bb3 {[%clk 0:02:08]}  Rc5 {[%clk 0:00:48]} 19. a4 {[%clk 0:02:00]}  b4 {[%clk 0:00:46]} 20. a5 {[%clk 0:01:59]}  h5 {[%clk 0:00:32]} 21. Qg3 {[%clk 0:01:55]}  h4 {[%clk 0:00:24]} 22. Qg4 {[%clk 0:01:54]}  Rh5 {[%clk 0:00:11]} 23. h3 {[%clk 0:01:45]}  Bc8 {[%clk 0:00:10]} 24. Bd2 {[%clk 0:01:33]}  e5 {[%clk 0:00:10]} 25. f4 {[%clk 0:01:29]}  d5 {[%clk 0:00:11]} 26. f5 {[%clk 0:01:29]}  dxe4 {[%clk 0:00:09]} 27. dxe4 {[%clk 0:01:28]}  Rh7 {[%clk 0:00:04]} 28. Qg6 {[%clk 0:01:22]}  Qd8 {[%clk 0:00:01]} 29. Qb6 {[%clk 0:01:11]}  Qe8 {[%clk 0:00:02]} 30. Bxb4 {[%clk 0:01:02]}  Bxb4 {[%clk 0:00:02]} 31. Qxb4 {[%clk 0:01:01]}  Rh6 {[%clk 0:00:00]} 32. Rf3 {[%clk 0:00:50]} 1-0


[Site "https://www.chess.com"]

[Event "Titled Tuesday Blitz May 23 Late 2023"]
[White "Krzyzanowski, Marcin"]
[Black "Melikyan, Gnel"]
[WhiteFideId "1132199"]
[BlackFideId "54109990"]
[WhiteElo "2471"]
[BlackElo "2138"]
[Result "1-0"]
[Round "06"]
[TimeControl "180+2"]
[Date "2023.05.23"]
[WhiteClock "0:00:03"]
[BlackClock "0:00:00"]

1. e4 {[%clk 0:03:00]}  c5 {[%clk 0:02:59]} 2. Nf3 {[%clk 0:03:00]}  Nc6 {[%clk 0:02:59]} 3. Nc3 {[%clk 0:02:59]}  g6 {[%clk 0:02:59]} 4. d4 {[%clk 0:02:48]}  cxd4 {[%clk 0:02:49]} 5. Nxd4 {[%clk 0:02:49]}  Bg7 {[%clk 0:02:49]} 6. Nb3 {[%clk 0:02:48]}  Nf6 {[%clk 0:02:49]} 7. Be2 {[%clk 0:02:47]}  O-O {[%clk 0:02:49]} 8. O-O {[%clk 0:02:47]}  b6 {[%clk 0:02:48]} 9. Re1 {[%clk 0:02:45]}  Bb7 {[%clk 0:02:48]} 10. Bf1 {[%clk 0:02:43]}  d6 {[%clk 0:02:44]} 11. Bg5 {[%clk 0:02:35]}  Rc8 {[%clk 0:02:42]} 12. Nd5 {[%clk 0:02:29]}  e6 {[%clk 0:02:20]} 13. Nxf6+ {[%clk 0:02:20]}  Bxf6 {[%clk 0:02:20]} 14. Bh6 {[%clk 0:02:16]}  Re8 {[%clk 0:02:15]} 15. c3 {[%clk 0:02:15]}  Ne5 {[%clk 0:02:06]} 16. Nd4 {[%clk 0:02:02]}  d5 {[%clk 0:02:02]} 17. f4 {[%clk 0:01:53]}  Nc6 {[%clk 0:01:45]} 18. e5 {[%clk 0:01:21]}  Nxd4 {[%clk 0:01:43]} 19. cxd4 {[%clk 0:01:07]}  Bg7 {[%clk 0:01:33]} 20. Bxg7 {[%clk 0:00:54]}  Kxg7 {[%clk 0:01:33]} 21. Qa4 {[%clk 0:00:55]}  Bc6 {[%clk 0:01:15]} 22. Qa3 {[%clk 0:00:49]}  Qe7 {[%clk 0:01:11]} 23. Qxe7 {[%clk 0:00:44]}  Rxe7 {[%clk 0:01:11]} 24. Rac1 {[%clk 0:00:45]}  Bb7 {[%clk 0:00:47]} 25. Rxc8 {[%clk 0:00:44]}  Bxc8 {[%clk 0:00:48]} 26. Rc1 {[%clk 0:00:45]}  Bb7 {[%clk 0:00:47]} 27. Kf2 {[%clk 0:00:41]}  Kf8 {[%clk 0:00:47]} 28. g4 {[%clk 0:00:40]}  Ke8 {[%clk 0:00:46]} 29. f5 {[%clk 0:00:38]}  Kd8 {[%clk 0:00:41]} 30. Ke3 {[%clk 0:00:28]}  exf5 {[%clk 0:00:35]} 31. gxf5 {[%clk 0:00:28]}  f6 {[%clk 0:00:35]} 32. Kf4 {[%clk 0:00:18]}  g5+ {[%clk 0:00:34]} 33. Kg4 {[%clk 0:00:18]}  fxe5 {[%clk 0:00:34]} 34. f6 {[%clk 0:00:18]}  Re6 {[%clk 0:00:23]} 35. Kxg5 {[%clk 0:00:18]}  exd4 {[%clk 0:00:22]} 36. f7 {[%clk 0:00:10]}  Ke7 {[%clk 0:00:21]} 37. Rc7+ {[%clk 0:00:09]}  Kf8 {[%clk 0:00:22]} 38. Rxb7 {[%clk 0:00:08]}  Re3 {[%clk 0:00:19]} 39. Rd7 {[%clk 0:00:03]}  Rf3 {[%clk 0:00:17]} 40. Bb5 {[%clk 0:00:02]}  Rf2 {[%clk 0:00:14]} 41. Rxd5 {[%clk 0:00:02]}  Rxb2 {[%clk 0:00:13]} 42. Bc4 {[%clk 0:00:02]}  Rg2+ {[%clk 0:00:08]} 43. Kf6 {[%clk 0:00:02]}  Rf2+ {[%clk 0:00:09]} 44. Ke6 {[%clk 0:00:02]}  Re2+ {[%clk 0:00:09]} 45. Kd6 {[%clk 0:00:02]}  Rxh2 {[%clk 0:00:07]} 46. Rxd4 {[%clk 0:00:02]}  Rf2 {[%clk 0:00:03]} 47. Kc7 {[%clk 0:00:02]}  Kg7 {[%clk 0:00:03]} 48. Rg4+ {[%clk 0:00:02]}  Kh6 {[%clk 0:00:03]} 49. Rg8 {[%clk 0:00:02]}  Rxf7+ {[%clk 0:00:00]} 50. Bxf7 {[%clk 0:00:03]} 1-0


[Site "https://www.chess.com"]

[Event "Titled Tuesday Blitz May 23 Late 2023"]
[White "Gubajdullin, Alexei"]
[Black "Mekhitarian, Krikor Sevag"]
[WhiteFideId "4141202"]
[BlackFideId "2107660"]
[WhiteElo "2279"]
[BlackElo "2604"]
[Result "0-1"]
[Round "06"]
[TimeControl "180+2"]
[Date "2023.05.23"]
[WhiteClock "0:00:00"]
[BlackClock "0:00:05"]

1. d4 {[%clk 0:03:00]}  d5 {[%clk 0:02:58]} 2. Nf3 {[%clk 0:02:58]}  Nf6 {[%clk 0:02:47]} 3. Bf4 {[%clk 0:02:58]}  c5 {[%clk 0:02:46]} 4. e3 {[%clk 0:02:57]}  Nc6 {[%clk 0:02:46]} 5. Nbd2 {[%clk 0:02:56]}  e6 {[%clk 0:02:43]} 6. c3 {[%clk 0:02:55]}  Nh5 {[%clk 0:02:43]} 7. Bg5 {[%clk 0:02:47]}  Qb6 {[%clk 0:02:42]} 8. dxc5 {[%clk 0:02:46]}  Bxc5 {[%clk 0:02:15]} 9. b4 {[%clk 0:02:45]}  Be7 {[%clk 0:01:46]} 10. b5 {[%clk 0:02:44]}  Na5 {[%clk 0:01:46]} 11. Bxe7 {[%clk 0:02:38]}  Kxe7 {[%clk 0:01:47]} 12. Qa4 {[%clk 0:02:36]}  Nf6 {[%clk 0:01:42]} 13. Qb4+ {[%clk 0:02:29]}  Ke8 {[%clk 0:01:41]} 14. c4 {[%clk 0:02:14]}  dxc4 {[%clk 0:01:37]} 15. Bxc4 {[%clk 0:02:13]}  Qd8 {[%clk 0:01:33]} 16. O-O {[%clk 0:01:58]}  b6 {[%clk 0:01:34]} 17. Rfd1 {[%clk 0:01:57]}  Qe7 {[%clk 0:01:33]} 18. a3 {[%clk 0:01:47]}  Bb7 {[%clk 0:01:29]} 19. Be2 {[%clk 0:01:42]}  Nd5 {[%clk 0:01:22]} 20. Qg4 {[%clk 0:01:22]}  Kf8 {[%clk 0:01:12]} 21. Rdc1 {[%clk 0:01:09]}  h5 {[%clk 0:01:07]} 22. Qg5 {[%clk 0:00:50]}  Rd8 {[%clk 0:01:00]} 23. Qe5 {[%clk 0:00:31]}  Qf6 {[%clk 0:00:51]} 24. Rc2 {[%clk 0:00:30]}  Qxe5 {[%clk 0:00:38]} 25. Nxe5 {[%clk 0:00:29]}  Rc8 {[%clk 0:00:22]} 26. Rxc8+ {[%clk 0:00:24]}  Bxc8 {[%clk 0:00:23]} 27. Rc1 {[%clk 0:00:23]}  Ke7 {[%clk 0:00:23]} 28. h4 {[%clk 0:00:16]}  Rd8 {[%clk 0:00:20]} 29. Ndf3 {[%clk 0:00:08]}  f6 {[%clk 0:00:20]} 30. Nc6+ {[%clk 0:00:04]}  Nxc6 {[%clk 0:00:19]} 31. bxc6 {[%clk 0:00:04]}  Nc7 {[%clk 0:00:19]} 32. Nd4 {[%clk 0:00:04]}  a6 {[%clk 0:00:20]} 33. Bxh5 {[%clk 0:00:02]}  e5 {[%clk 0:00:20]} 34. Nf3 {[%clk 0:00:02]}  Rd6 {[%clk 0:00:21]} 35. Bg6 {[%clk 0:00:02]}  Be6 {[%clk 0:00:21]} 36. Be4 {[%clk 0:00:02]}  Bf7 {[%clk 0:00:15]} 37. g4 {[%clk 0:00:02]}  Be8 {[%clk 0:00:16]} 38. h5 {[%clk 0:00:01]}  b5 {[%clk 0:00:14]} 39. Nh4 {[%clk 0:00:01]}  Kf8 {[%clk 0:00:13]} 40. Nf5 {[%clk 0:00:01]}  Rd2 {[%clk 0:00:14]} 41. Kf1 {[%clk 0:00:01]}  a5 {[%clk 0:00:14]} 42. Ke1 {[%clk 0:00:02]}  Rd8 {[%clk 0:00:15]} 43. Rd1 {[%clk 0:00:02]}  Rb8 {[%clk 0:00:15]} 44. Nd6 {[%clk 0:00:02]}  b4 {[%clk 0:00:12]} 45. axb4 {[%clk 0:00:02]}  axb4 {[%clk 0:00:12]} 46. Rb1 {[%clk 0:00:03]}  Bf7 {[%clk 0:00:10]} 47. Nxf7 {[%clk 0:00:03]}  Kxf7 {[%clk 0:00:11]} 48. Bd3 {[%clk 0:00:03]}  Ke7 {[%clk 0:00:11]} 49. f3 {[%clk 0:00:03]}  Kd6 {[%clk 0:00:12]} 50. Be4 {[%clk 0:00:04]}  Ke7 {[%clk 0:00:09]} 51. Kd2 {[%clk 0:00:04]}  Ne6 {[%clk 0:00:10]} 52. Kc2 {[%clk 0:00:04]}  Nc5 {[%clk 0:00:10]} 53. Bf5 {[%clk 0:00:03]}  Kd6 {[%clk 0:00:10]} 54. f4 {[%clk 0:00:01]}  Kxc6 {[%clk 0:00:09]} 55. g5 {[%clk 0:00:00]}  exf4 {[%clk 0:00:05]} 0-1


[Site "https://www.chess.com"]

[Event "Titled Tuesday Blitz May 23 Late 2023"]
[White "Rostovtsev, Dmitry"]
[Black "Gurevich, Dmitry"]
[WhiteFideId "34278320"]
[BlackFideId "2000407"]
[WhiteElo "2344"]
[BlackElo "2506"]
[Result "1/2-1/2"]
[Round "06"]
[TimeControl "180+2"]
[Date "2023.05.23"]
[WhiteClock "0:00:08"]
[BlackClock "0:00:14"]

1. e4 {[%clk 0:03:00]}  c5 {[%clk 0:02:59]} 2. Nf3 {[%clk 0:03:01]}  d6 {[%clk 0:02:57]} 3. d4 {[%clk 0:03:01]}  cxd4 {[%clk 0:02:57]} 4. Qxd4 {[%clk 0:03:02]}  a6 {[%clk 0:02:57]} 5. Nc3 {[%clk 0:03:02]}  e6 {[%clk 0:02:55]} 6. Be2 {[%clk 0:02:55]}  Nf6 {[%clk 0:02:54]} 7. O-O {[%clk 0:02:55]}  Be7 {[%clk 0:02:54]} 8. Rd1 {[%clk 0:02:51]}  O-O {[%clk 0:02:49]} 9. h3 {[%clk 0:02:49]}  b5 {[%clk 0:02:45]} 10. a4 {[%clk 0:02:46]}  Nc6 {[%clk 0:02:36]} 11. Qe3 {[%clk 0:02:41]}  b4 {[%clk 0:02:33]} 12. Nb1 {[%clk 0:02:42]}  Qc7 {[%clk 0:02:27]} 13. Nbd2 {[%clk 0:02:33]}  Bb7 {[%clk 0:02:25]} 14. b3 {[%clk 0:02:29]}  d5 {[%clk 0:02:18]} 15. e5 {[%clk 0:02:17]}  Nd7 {[%clk 0:02:14]} 16. Bb2 {[%clk 0:02:17]}  Bc5 {[%clk 0:02:03]} 17. Qg5 {[%clk 0:02:16]}  h6 {[%clk 0:02:01]} 18. Qh5 {[%clk 0:02:12]}  Qb6 {[%clk 0:01:43]} 19. Rf1 {[%clk 0:02:11]}  Rad8 {[%clk 0:01:31]} 20. Bd3 {[%clk 0:02:10]}  Nd4 {[%clk 0:01:21]} 21. Nxd4 {[%clk 0:02:11]}  Bxd4 {[%clk 0:01:20]} 22. Bxd4 {[%clk 0:02:11]}  Qxd4 {[%clk 0:01:20]} 23. Nf3 {[%clk 0:02:12]}  Qc3 {[%clk 0:01:16]} 24. Qg4 {[%clk 0:01:38]}  Nxe5 {[%clk 0:01:09]} 25. Nxe5 {[%clk 0:01:38]}  Qxe5 {[%clk 0:01:09]} 26. Qxb4 {[%clk 0:01:39]}  Qc7 {[%clk 0:01:06]} 27. a5 {[%clk 0:01:35]}  e5 {[%clk 0:01:04]} 28. Rfd1 {[%clk 0:01:23]}  e4 {[%clk 0:01:02]} 29. Bf1 {[%clk 0:01:24]}  f5 {[%clk 0:00:58]} 30. Qb6 {[%clk 0:01:18]}  Qxb6 {[%clk 0:00:44]} 31. axb6 {[%clk 0:01:19]}  Rf6 {[%clk 0:00:43]} 32. Bxa6 {[%clk 0:01:13]}  Rxb6 {[%clk 0:00:42]} 33. Bxb7 {[%clk 0:01:08]}  Rxb7 {[%clk 0:00:42]} 34. Ra5 {[%clk 0:01:09]}  Rbd7 {[%clk 0:00:37]} 35. h4 {[%clk 0:01:02]}  Kf7 {[%clk 0:00:35]} 36. Rd4 {[%clk 0:00:41]}  Ke6 {[%clk 0:00:33]} 37. c4 {[%clk 0:00:33]}  dxc4 {[%clk 0:00:30]} 38. Rxc4 {[%clk 0:00:33]}  Rd1+ {[%clk 0:00:26]} 39. Kh2 {[%clk 0:00:34]}  R1d2 {[%clk 0:00:23]} 40. Ra6+ {[%clk 0:00:24]}  R8d6 {[%clk 0:00:22]} 41. Rxd6+ {[%clk 0:00:22]}  Kxd6 {[%clk 0:00:21]} 42. Kg1 {[%clk 0:00:23]}  g5 {[%clk 0:00:19]} 43. h5 {[%clk 0:00:21]}  Ke5 {[%clk 0:00:18]} 44. Rc6 {[%clk 0:00:21]}  Rd1+ {[%clk 0:00:17]} 45. Kh2 {[%clk 0:00:21]}  Rd2 {[%clk 0:00:17]} 46. Kg1 {[%clk 0:00:20]}  Rd1+ {[%clk 0:00:14]} 47. Kh2 {[%clk 0:00:20]}  Rd2 {[%clk 0:00:14]} 48. Kg1 {[%clk 0:00:08]} 1/2-1/2


[Site "https://www.chess.com"]